fUST/lending_fUST_20251104
["ID","MTS","AMOUNT","RATE_DAILY","PERIOD"]
[392997767,1762212632028,-300.0,0.00024141,2]
[392997768,1762212632037,-300.0,0.00024141,2]
[392997769,1762212632046,-300.0,0.00024141,2]
[392997770,1762212632055,-517.0,0.00024141,2]
[392997771,1762212632065,-17810.49378032,0.00024142,2]
[392997772,1762212632074,-282.1508306,0.00024453,2]
[392997773,1762212632083,-500.0,0.00024973,2]
[392997774,1762212632092,-201.93286099,0.00024985,2]
[392997775,1762212632102,-57075.03890831,0.00025,2]
[392997776,1762212632111,-150.0,0.00025037,2]
[392997777,1762212632121,-250.0,0.00025037,2]
[392997778,1762212632131,-264.889,0.00025037,2]
[392997779,1762212632140,-212.673,0.00025037,2]
[392997780,1762212632149,-152.06,0.000251,2]
[392997781,1762212632159,-322.86104752,0.00025265,3]
[392997782,1762212632168,-2164.0,0.00025371,2]
[392997783,1762212632178,-985.0,0.00025371,2]
[392997784,1762212632187,-627.0,0.00025371,2]
[392997785,1762212632196,-412.0,0.00025371,2]
[392997786,1762212632206,-152.06,0.000254,2]
[392997787,1762212632216,-1000.0,0.00025521,2]
[392997788,1762212632228,-209.40437684,0.00025533,2]
[392997789,1762212632237,-152.06,0.000257,2]
[392997790,1762212632247,-177.0,0.00025751,2]
[392997791,1762212632257,-152.06,0.00026,2]
[392997792,1762212632266,-217.15233878,0.00026081,2]
[392997793,1762212632275,-420.0,0.00026176,2]
[392997794,1762212632285,-4034.88,0.00026526,2]
[392997795,1762212632294,-225.18697532,0.00026629,2]
[392997796,1762212632303,-575.11644,0.00026676,2]
[392997797,1762212632313,-322.86104752,0.00026859,4]
[392997798,1762212632322,-282.1508306,0.00026932,2]
[392997799,1762212632332,-399.37230381,0.00027,3]
[392997800,1762212632341,-233.51889341,0.00027177,2]
[392997801,1762212632350,-1500.0,0.000272,2]
[392997802,1762212632359,-207.45472763,0.0002731,2]
[392997803,1762212632371,-160.0,0.00027696,2]
[392997804,1762212632380,-160.0,0.00027699,2]
[392997805,1762212632390,-160.0,0.000277,2]
[392997806,1762212632400,-242.15909246,0.00027725,2]
[392997807,1762212632410,-578.05,0.00027741,10]
[392997808,1762212632419,-204.0,0.00027751,2]
[392997809,1762212632429,-504.62,0.00028,10]
[392997810,1762212632438,-150.0,0.00028037,2]
[392997811,1762212632448,-382.03,0.000281,7]
[392997812,1762212632457,-260.0,0.00028248,2]
[392997813,1762212632467,-251.11897888,0.00028273,2]
[392997814,1762212632476,-2164.0,0.00028371,2]
[392997815,1762212632485,-335.572,0.00028371,2]
[392997816,1762212632494,-627.0,0.00028371,2]
[392997817,1762212632504,-412.0,0.00028371,2]
[392997818,1762212632513,-587.0,0.00028382,2]
[392997819,1762212632522,-322.86104752,0.00028453,5]
[392997820,1762212632532,-360.0,0.00028796,2]
[392997821,1762212632541,-260.4103811,0.00028821,2]
[392997822,1762212632550,-222.22222222,0.00029132,2]
[392997823,1762212632560,-460.0,0.00029344,2]
[392997824,1762212632569,-270.0455652,0.00029369,2]
[392997825,1762212632579,-500.0,0.00029373,2]
[392997826,1762212632588,-500.0,0.00029373,5]
[392997827,1762212632597,-42082.87644145,0.0002939,2]
[392997863,1762212637854,-190.04277426,0.00024141,2]
[392997864,1762212637869,-500.0,0.00024141,2]
[392997865,1762212637879,-166.66462806,0.00024141,2]
[392997866,1762212637889,-500.0,0.00024141,2]
[392997868,1762212637899,-482.68251879,0.00024141,2]
[392997870,1762212637911,-17.31748121,0.00024141,2]
[392997872,1762212637920,-500.0,0.00024141,2]
[392997874,1762212637930,-500.0,0.00024141,2]
[392997876,1762212637940,-500.0,0.00024141,2]
[392997877,1762212637949,-500.0,0.00024141,2]
[392997878,1762212637958,-500.0,0.00024141,2]
[392997879,1762212637967,-453.84286673,0.00024141,2]
[392997880,1762212637977,-650.0,0.00024141,2]
[392997881,1762212637986,-481.71,0.00027731,10]
[392997882,1762212637995,-16537.63001423,0.0002939,2]
[392997957,1762212643207,-7992.85931952,0.0002939,2]
[392997959,1762212643217,-14050.76556816,0.000294,7]
[392997973,1762212646277,-159.22049582,0.00024141,2]
[392997974,1762212646287,-1474.12528618,0.000294,7]
[392997980,1762213166465,488.848974,0.00013699,2]
[392997981,1762213166659,488.848974,0.00020187,2]
[392997984,1762213501499,813.8,0.00037161,120]
[392997985,1762213561606,297.31,0.00032877,120]
[392997995,1762213711068,5248.0,0.00032877,120]
[392997998,1762213771851,10000.0,0.00032877,120]
[392997999,1762213783867,1799.31,0.00032877,120]
[392998023,1762213832055,-150.0,0.00023554,2]
[392998025,1762213832065,-162.15659808,0.00023672,2]
[392998027,1762213832075,-177.0,0.00025554,2]
[392998029,1762213832084,-300.0,0.00026051,2]
[392998031,1762213832093,-500.0,0.00026052,2]
[392998033,1762213832104,-500.0,0.00026052,2]
[392998035,1762213832113,-500.0,0.00026052,2]
[392998037,1762213832122,-500.0,0.00026052,2]
[392998039,1762213832131,-500.0,0.00026052,2]
[392998041,1762213832140,-500.0,0.00026052,2]
[392998043,1762213832150,-500.0,0.00026052,2]
[392998045,1762213832160,-500.0,0.00026052,2]
[392998047,1762213832170,-500.0,0.00026052,2]
[392998049,1762213832179,-287.66985997,0.00026052,2]
[392998051,1762213832188,-500.0,0.00026052,2]
[392998053,1762213832198,-500.0,0.00026052,2]
[392998055,1762213832207,-500.0,0.00026052,2]
[392998057,1762213832216,-388.4371294,0.00026052,2]
[392998059,1762213832225,-500.0,0.00026052,2]
[392998061,1762213832234,-500.0,0.00026052,2]
[392998063,1762213832243,-500.0,0.00026052,2]
[392998065,1762213832252,-500.0,0.00026052,2]
[392998067,1762213832261,-500.0,0.00026052,2]
[392998069,1762213832270,-500.0,0.00026052,2]
[392998071,1762213832279,-2164.0,0.00026053,2]
[392998073,1762213832287,-412.0,0.00026053,2]
[392998075,1762213832297,-488.848974,0.00026676,2]
[392998077,1762213832309,-204.0,0.00027554,2]
[392998079,1762213832318,-399.37230381,0.00027707,2]
[392998081,1762213832328,-420.0,0.00028191,2]
[392998083,1762213832337,-207.55840316,0.00028463,2]
[392998085,1762213832348,-1539.737,0.00029053,2]
[392998087,1762213832356,-412.0,0.00029053,2]
[392998090,1762213832366,-4911.14914566,0.000294,7]
[392998093,1762213832377,-1953.99,0.000294,14]
[392998095,1762213832386,-282.1508306,0.00029411,2]
[392998097,1762213832395,-231.0,0.00029554,2]
[392998099,1762213832405,-1000.0,0.0003,15]
[392998101,1762213832414,-162.31875468,0.00030046,7]
[392998103,1762213832423,-222.22222222,0.00030358,56]
[392998105,1762213832432,-530.0,0.00030508,2]
[392998107,1762213832441,-401.42,0.00031,10]
[392998108,1762213832450,-334.52,0.00031,10]
[392998109,1762213832459,-8768.50343156,0.00031,2]
[392998110,1762213832473,-1434.9882294,0.00031,2]
[392998119,1762213838136,-278.77,0.00031,10]
[392998120,1762213838146,-1643.70675034,0.00031,2]
[392998121,1762213838217,-61016.624769,0.00031,2]
[392998122,1762213838227,-29513.23856748,0.0003101,5]
[392998123,1762213838239,-44819.19758852,0.0003101,5]
[392998124,1762213838251,-17087.79892284,0.0003101,5]
[392998125,1762213838261,-343.82,0.000311,7]
[392998126,1762213838270,-258.0,0.00031554,2]
[392998127,1762213838280,-222.22222222,0.00031585,110]
[392998128,1762213838290,-209.40437684,0.00031771,2]
[392998129,1762213838302,-500.0,0.00031773,5]
[392998130,1762213838312,-500.0,0.00031773,5]
[392998131,1762213838321,-167.199372,0.0003179,31]
[392998132,1762213838331,-162.862392,0.0003179,31]
[392998133,1762213838341,-151.0,0.0003179,31]
[392998134,1762213838352,-151.0,0.0003179,31]
[392998135,1762213838361,-151.0,0.0003179,31]
[392998136,1762213838372,-151.0,0.0003179,31]
[392998137,1762213838381,-151.0,0.0003179,31]
[392998138,1762213838391,-151.0,0.0003179,2]
[392998139,1762213838400,-151.0,0.0003179,2]
[392998140,1762213838409,-151.0,0.0003179,7]
[392998141,1762213838419,-185.340468,0.0003179,31]
[392998142,1762213838428,-151.0,0.0003179,31]
[392998143,1762213838437,-151.0,0.0003179,31]
[392998144,1762213838447,-151.0,0.0003179,31]
[392998145,1762213838457,-151.974544,0.0003179,7]
[392998146,1762213838467,-151.0,0.0003179,15]
[392998147,1762213838476,-151.0,0.0003179,15]
[392998148,1762213838486,-151.0,0.0003179,31]
[392998149,1762213838495,-56700.15846172,0.0003179,2]
[392998150,1762213838507,-373.06180875,0.0003179,2]
[392998155,1762213840399,-15000.0,0.0003179,2]
[392998156,1762213840418,-790.60290983,0.0003179,2]
[392998157,1762213840434,-20.08709017,0.0003179,31]
[392998166,1762213843166,-130.91290983,0.0003179,31]
[392998167,1762213843179,-151.0,0.0003179,31]
[392998168,1762213843192,-155.723158,0.0003179,31]
[392998169,1762213843204,-151.0,0.0003179,2]
[392998170,1762213843216,-163.277685,0.0003179,31]
[392998171,1762213843228,-151.0,0.0003179,31]
[392998172,1762213843242,-151.0,0.0003179,31]
[392998173,1762213843254,-151.0,0.0003179,31]
[392998174,1762213843266,-198.0012,0.0003179,31]
[392998175,1762213843278,-151.0,0.0003179,31]
[392998176,1762213843291,-154.118474,0.0003179,31]
[392998177,1762213843306,-151.0,0.0003179,30]
[392998178,1762213843318,-1829.982822,0.0003179,31]
[392998179,1762213843330,-1258.64403939,0.0003179,31]
[392998202,1762213846364,-571.33878261,0.0003179,31]
[392998203,1762213846382,-1829.982822,0.0003179,31]
[392998204,1762213846392,-807.75028357,0.0003179,31]
[392998205,1762213846404,-1022.23253843,0.0003179,31]
[392998206,1762213846415,-14174.25871601,0.000318,7]
[392998207,1762213846427,-6261.78128399,0.000318,7]
[392998208,1762213846436,-282.1508306,0.00031891,2]
[392998209,1762213846445,-2613.31421246,0.000319,2]
[392998210,1762213846454,-500.0,0.00032,15]
[392998211,1762213846463,-1953.99,0.00032,14]
[392998212,1762213846472,-217.15233878,0.00032319,2]
[392998213,1762213846481,-1000.0,0.00032321,5]
[392998214,1762213846490,-1000.0,0.00032321,5]
[392998215,1762213846499,-151.0,0.00032321,2]
[392998216,1762213846508,-188.653858,0.00032321,2]
[392998217,1762213846518,-221.356024,0.00032333,31]
[392998218,1762213846527,-151.0,0.00032333,31]
[392998219,1762213846536,-151.0,0.00032333,31]
[392998220,1762213846546,-151.0,0.00032333,31]
[392998221,1762213846555,-500.0,0.00032333,7]
[392998222,1762213846565,-151.0,0.00032848,31]
[392998223,1762213846574,-151.0,0.00032848,31]
[392998224,1762213846583,-225.18697532,0.00032867,2]
[392998225,1762213846593,-151.0,0.00032868,7]
[392998226,1762213846603,-151.0,0.00032868,31]
[392998227,1762213846612,-151.0,0.00032868,31]
[392998228,1762213846621,-151.0,0.00032868,15]
[392998229,1762213846631,-151.0,0.00032868,31]
[392998230,1762213846640,-200.942888,0.00032868,31]
[392998231,1762213846649,-1829.982822,0.00032868,31]
[392998232,1762213846659,-1829.982822,0.00032868,31]
[392998233,1762213846667,-1829.982822,0.00032868,31]
[392998234,1762213846677,-1829.982822,0.00032868,31]
[392998235,1762213846685,-1500.0,0.00032868,5]
[392998236,1762213846695,-1500.0,0.00032868,5]
[392998237,1762213846704,-151.0,0.00032877,31]
[392998238,1762213846713,-151.0,0.00032877,31]
[392998239,1762213846723,-151.0,0.00032877,31]
[392998240,1762213846732,-151.0,0.00032877,31]
[392998241,1762213846741,-300.0,0.00032877,120]
[392998242,1762213846750,-264.35896738,0.00032877,14]
[392998243,1762213846760,-6210.28234386,0.00033,2]
[392998244,1762213846769,-269.0,0.000331,2]
[392998245,1762213846778,-500.0,0.00033134,7]
[392998246,1762213846787,-488.848974,0.00033165,2]
[392998247,1762213846797,-500.0,0.00033182,12]
[392998248,1762213846807,-500.0,0.00033182,12]
[392998249,1762213846816,-2835.26755803,0.000332,7]
[392998250,1762213846826,-500.0,0.00033216,7]
[392998251,1762213846835,-321.0,0.00033397,2]
[392998252,1762213846845,-233.51889341,0.00033415,2]
[392998253,1762213846854,-836.64555136,0.00033416,5]
[392998254,1762213846864,-2000.0,0.00033416,5]
[392998255,1762213846873,-285.0,0.00033554,120]
[392998256,1762213846882,-500.0,0.00033616,7]
[392998257,1762213846892,-502.74641822,0.00033699,7]
[392998258,1762213846902,-343.82,0.000338,7]
[392998259,1762213846911,-242.15909246,0.00033963,2]
[392998260,1762213846920,-901.42573428,0.00033964,5]
[392998261,1762213846932,-1598.57426572,0.00033964,5]
[392998262,1762213846942,-232.3,0.00034025,10]
[392998263,1762213846951,-4851.65553599,0.00034035,2]
[392998264,1762213879747,150.0,0.000328,120]
[392998265,1762213896820,150.0,0.000328,120]
[392998266,1762213913634,150.0,0.000328,120]
[392998267,1762214034866,5056.03,0.00032877,120]
[392998268,1762214092730,62137.65051234,0.000328,120]
[392998270,1762214305737,179803.5799615,0.00037156,60]
[392998280,1762215032460,-200.0,0.00023986,2]
[392998281,1762215032470,-418.0,0.00023986,2]
[392998282,1762215032479,-150.0,0.00024291,2]
[392998283,1762215032488,-177.0,0.00026291,2]
[392998284,1762215032497,-412.0,0.00026517,2]
[392998285,1762215032506,-204.0,0.00028291,2]
[392998286,1762215032515,-165.5,0.00029509,2]
[392998287,1762215032527,-233.87230381,0.00029509,2]
[392998288,1762215032536,-160.0,0.00029509,2]
[392998290,1762215032546,-412.0,0.00029517,2]
[392998291,1762215032555,-231.0,0.00030291,2]
[392998292,1762215032564,-150.0,0.00030999,30]
[392998294,1762215032573,-300.0,0.00030999,33]
[392998296,1762215032581,-321.46564644,0.00030999,36]
[392998298,1762215032590,-154.720078,0.00032017,7]
[392998300,1762215032600,-154.720078,0.00032105,15]
[392998301,1762215032610,-258.0,0.00032291,2]
[392998302,1762215032619,-412.0,0.00032517,2]
[392998303,1762215032628,-506.69611989,0.0003302,7]
[392998305,1762215032637,-250.0,0.00033194,2]
[392998307,1762215032646,-285.0,0.00034291,120]
[392998309,1762215032654,-275.06,0.000344,7]
[392998311,1762215032663,-150.84,0.0003447,60]
[392998313,1762215032672,-150.84,0.0003457,60]
[392998315,1762215032681,-150.84,0.0003467,60]
[392998316,1762215032690,-150.84,0.0003477,60]
[392998318,1762215032699,-150.84,0.0003487,60]
[392998321,1762215032710,-1283.63558974,0.000349,2]
[392998323,1762215032722,-150.84,0.0003497,60]
[392998325,1762215032731,-217.09365186,0.00034971,2]
[392998327,1762215032740,-500.0,0.00034971,7]
[392998329,1762215032749,-198.62998444,0.00034971,7]
[392998330,1762215032758,-376.49301438,0.00034971,7]
[392998331,1762215032768,-500.0,0.00034973,5]
[392998332,1762215032777,-500.60819488,0.00034973,5]
[392998333,1762215032787,-500.0,0.00034973,5]
[392998334,1762215032796,-500.0,0.00034973,5]
[392998335,1762215032805,-501.35614855,0.00034973,5]
[392998336,1762215032814,-161.45154372,0.00034973,5]
[392998337,1762215032824,-500.0,0.00034973,5]
[392998338,1762215032833,-502.26029592,0.00034973,5]
[392998339,1762215032842,-209.40437684,0.00034979,2]
[392998340,1762215032851,-649.0917027,0.00034999,7]
[392998341,1762215032861,-152.0,0.00035,120]
[392998342,1762215032870,-10076.16839702,0.00035,14]
[392998343,1762215032880,-10699.59811704,0.00035,2]
[392998344,1762215032890,-346.18595201,0.00035,2]
[392998345,1762215032901,-310.59354227,0.00035,2]
[392998346,1762215032911,-1424.54906634,0.00035,120]
[392998386,1762215038193,-1000.0,0.00035,120]
[392998388,1762215038206,-1620.16822618,0.00035,120]
[392998390,1762215038216,-3182.56,0.00035,14]
[392998392,1762215038226,-597.27177382,0.00035,14]
[392998394,1762215038238,-15400.0,0.00035,14]
[392998396,1762215038249,-351.55822618,0.00035,14]
[392998398,1762215038259,-3.44177382,0.00035,30]
[392998401,1762215038274,-1559.74822618,0.00035,30]
[392998404,1762215038284,-155.0,0.00035,30]
[392998406,1762215038294,-500.0,0.00035,60]
[392998409,1762215038304,-500.0,0.00035,60]
[392998411,1762215038314,-500.0,0.00035055,60]
[392998414,1762215038324,-135.25177382,0.00035055,60]
[392998615,1762215040443,-364.74822618,0.00035055,60]
[392998617,1762215040453,-150.84,0.0003507,60]
[392998619,1762215040463,-219.00000001,0.0003511,60]
[392998621,1762215040472,-500.0,0.0003511,60]
[392998623,1762215040481,-150.84,0.0003517,60]
[392998625,1762215040490,-506.53255167,0.000352,5]
[392998627,1762215040500,-150.84,0.0003527,60]
[392998629,1762215040508,-150.84,0.0003537,60]
[392998631,1762215040517,-2000.0,0.00035388,15]
[392998633,1762215040527,-150.84,0.0003547,60]
[392998635,1762215040536,-412.0,0.00035517,2]
[392998637,1762215040545,-581.82296235,0.00035521,5]
[392998639,1762215040555,-1023.2018847,0.00035521,5]
[392998641,1762215040564,-419.51165689,0.00035521,5]
[392998643,1762215040573,-217.15233878,0.00035527,2]
[392998645,1762215040583,-150.84,0.0003557,60]
[392998647,1762215040592,-244.45,0.00035616,60]
[392998650,1762215040601,-500.0,0.00035616,120]
[392998652,1762215040610,-500.0,0.00035616,120]
[392998654,1762215040619,-500.0,0.00035616,120]
[392998655,1762215040627,-500.0,0.00035616,120]
[392998657,1762215040636,-500.0,0.00035616,120]
[392998659,1762215040645,-525.051694,0.00035616,120]
[392998662,1762215040656,-150.94706032,0.0003567,60]
[392998664,1762215040665,-1162.6821,0.00035786,2]
[392998666,1762215040675,-511.23607527,0.00035886,2]
[393000345,1762215414411,143641.0,0.0002,7]
[393000346,1762215815992,391.079179,0.00013699,2]
[393000347,1762215816205,391.079179,0.00020187,2]
[393000358,1762216103304,12043.61488768,0.00017,2]
[393000359,1762216105783,10000.01,0.00015,2]
[393000426,1762216232576,-7998.09653367,0.00024142,2]
[393000428,1762216232586,-425.0,0.00024142,2]
[393000430,1762216232596,-1065.32437681,0.00024541,2]
[393000432,1762216232606,-1123.18114097,0.00024573,2]
[393000435,1762216232616,-32302.80080953,0.0002465,2]
[393000437,1762216232625,-500.68757968,0.00024673,2]
[393000439,1762216232635,-446.55072751,0.00024673,2]
[393000441,1762216232644,-500.0,0.00024673,2]
[393000443,1762216232653,-469.94560342,0.00024673,2]
[393000445,1762216232663,-217.77512488,0.00024673,2]
[393000447,1762216232671,-500.0,0.00024673,2]
[393000449,1762216232681,-500.0,0.00024673,2]
[393000451,1762216232690,-500.0,0.00024673,2]
[393000453,1762216232699,-500.0,0.00024673,2]
[393000454,1762216232708,-150.0,0.00024956,2]
[393000456,1762216232718,-1000.0,0.00025221,2]
[393000459,1762216232731,-1000.0,0.00025221,2]
[393000461,1762216232740,-1500.0,0.00025768,2]
[393000463,1762216232749,-1072.08025708,0.00025768,2]
[393000465,1762216232759,-427.91974292,0.00025768,2]
[393000467,1762216232768,-2000.0,0.00026316,2]
[393000469,1762216232777,-391.079179,0.00026676,2]
[393000471,1762216232787,-269.53651986,0.00026864,2]
[393000473,1762216232797,-362.0463954,0.00026864,2]
[393000475,1762216232809,-687.32545381,0.00026864,2]
[393000477,1762216232822,-1181.09163093,0.00026864,2]
[393000479,1762216232831,-177.0,0.00026956,2]
[393000481,1762216232840,-1500.0,0.000272,2]
[393000483,1762216232849,-3000.0,0.00027412,5]
[393000485,1762216232859,-412.0,0.00027641,2]
[393000486,1762216232868,-3500.0,0.0002796,5]
[393000487,1762216232878,-4000.0,0.00028508,5]
[393000488,1762216232887,-204.0,0.00028956,2]
[393000489,1762216232896,-4500.0,0.00029056,5]
[393000490,1762216232906,-1973.62106123,0.00029604,5]
[393000491,1762216232915,-1123.18114096,0.00030163,2]
[393000492,1762216232924,-154.720078,0.00030592,7]
[393000493,1762216232933,-399.37230381,0.00030622,2]
[393000494,1762216232943,-160.0,0.00030623,2]
[393000495,1762216232952,-412.0,0.00030641,2]
[393000496,1762216232962,-168.0,0.00030891,2]
[393000497,1762216232972,-231.0,0.00030956,2]
[393000498,1762216232981,-500.0,0.000312,5]
[393000499,1762216232990,-1194.43304526,0.00031509,2]
[393000500,1762216233000,-209.40437684,0.00031568,2]
[393000501,1762216233012,-168.0,0.00031623,2]
[393000502,1762216233025,-1136.0,0.00031747,3]
[393000503,1762216233034,-501.74945799,0.00031748,5]
[393000504,1762216233044,-1194.43304526,0.00031805,2]
[393000505,1762216233054,-217.15233878,0.00032116,2]
[393000506,1762216233064,-1194.43304526,0.00032117,2]
[393000507,1762216233074,-500.0,0.000322,5]
[393000508,1762216233088,-500.0,0.000322,5]
[393000509,1762216233098,-500.0,0.000322,5]
[393000510,1762216233108,-500.0,0.000322,5]
[393000511,1762216233118,-500.0,0.000322,5]
[393000512,1762216233128,-500.0,0.00032329,5]
[393000513,1762216233138,-419.0624035,0.00032329,5]
[393000514,1762216233147,-500.0,0.00032329,5]
[393000515,1762216233157,-500.0,0.00032329,5]
[393000516,1762216233167,-500.0,0.00032329,5]
[393000517,1762216233177,-206.04680977,0.00032419,2]
[393000518,1762216233186,-1194.43304526,0.00032446,2]
[393000519,1762216233195,-225.18697532,0.00032664,2]
[393000520,1762216233205,-500.0,0.00032733,5]
[393000521,1762216233214,-500.0,0.00032733,5]
[393000522,1762216233224,-500.0,0.00032733,5]
[393000523,1762216233233,-500.0,0.00032733,5]
[393000524,1762216233242,-150.0,0.00032733,5]
[393000525,1762216233251,-1000.0,0.00032748,5]
[393000526,1762216233261,-649.61244924,0.00032748,5]
[393000527,1762216233271,-500.0,0.00032748,5]
[393000528,1762216233280,-1000.0,0.00032748,5]
[393000529,1762216233290,-500.0,0.00032748,5]
[393000530,1762216233299,-1194.43304526,0.00032868,2]
[393000531,1762216233309,-1000.0,0.00032877,5]
[393000532,1762216233318,-454.36419189,0.00032877,7]
[393000533,1762216233328,-258.0,0.00032956,120]
[393000534,1762216233338,-705.31,0.00032965,10]
[393000535,1762216233349,-501.23737082,0.00032975,5]
[393000536,1762216233358,-500.0,0.00032975,5]
[393000537,1762216233367,-500.0,0.00033022,5]
[393000538,1762216233377,-1194.43304526,0.00033042,2]
[393000539,1762216233386,-391.079179,0.00033165,2]
[393000540,1762216233395,-157.14937578,0.000332,117]
[393000541,1762216233405,-233.51889341,0.00033212,2]
[393000542,1762216233415,-97.41191305,0.00033281,5]
[393000587,1762216238385,-902.58808695,0.00033281,5]
[393000589,1762216238395,-250.0,0.00033281,5]
[393000591,1762216238404,-500.0,0.00033296,5]
[393000592,1762216238414,-535.18474865,0.00033296,5]
[393000594,1762216238424,-1194.43304526,0.00033327,2]
[393000597,1762216238433,-168.0,0.00033357,2]
[393000598,1762216238443,-1194.43304526,0.00033441,2]
[393000600,1762216238452,-1000.0,0.00033523,5]
[393000602,1762216238462,-500.0,0.0003357,5]
[393000604,1762216238473,-412.0,0.00033641,2]
[393000606,1762216238483,-242.15909246,0.0003376,2]
[393000608,1762216238493,-1500.0,0.00033829,5]
[393000610,1762216238503,-350.0,0.00033829,5]
[393000612,1762216238513,-500.0,0.00033844,5]
[393000614,1762216238523,-639.23433398,0.0003393,2]
[393000617,1762216238535,-555.19871128,0.0003393,2]
[393000619,1762216238544,-1113.45273052,0.00034071,5]
[393000621,1762216238555,-237.76143852,0.00034108,2]
[393000623,1762216238565,-372.8685272,0.00034108,2]
[393000625,1762216238575,-500.0,0.00034118,5]
[393000627,1762216238585,-1194.43304526,0.0003422,2]
[393000628,1762216238594,-1194.43304526,0.00034289,2]
[393000630,1762216238604,-251.11897888,0.00034308,2]
[393000632,1762216238614,-2000.0,0.00034377,5]
[393000634,1762216238624,-450.0,0.00034377,5]
[393000637,1762216238634,-500.0,0.00034392,5]
[393000638,1762216238645,-1194.43304526,0.00034617,2]
[393000641,1762216238655,-500.0,0.00034666,5]
[393000642,1762216238664,-260.4103811,0.00034856,2]
[393000645,1762216238674,-2500.0,0.00034925,5]
[393000647,1762216238685,-550.0,0.00034925,5]
[393000649,1762216238694,-500.0,0.0003494,5]
[393000651,1762216238705,-285.0,0.00034956,120]
[393000653,1762216238715,-749.0,0.00035,10]
[393000654,1762216238724,-1194.43304526,0.00035027,2]
[393000657,1762216238736,-9445.5435723,0.00035098,2]
[393000658,1762216238747,-151.30649638,0.00035167,7]
[393000661,1762216238759,-508.09274881,0.00035214,5]
[393000663,1762216238768,-1194.43304526,0.00035247,2]
[393000665,1762216238778,-1031.20380549,0.00035258,15]
[393000666,1762216238787,-151.0,0.00035267,15]
[393000668,1762216238797,-151.0,0.00035267,15]
[393000670,1762216238806,-151.0,0.00035322,15]
[393000672,1762216238816,-151.0,0.00035322,15]
[393000674,1762216238825,-1097.989693,0.00035365,31]
[393000676,1762216238835,-1097.989693,0.00035365,31]
[393000678,1762216238845,-1097.989693,0.00035365,31]
[393000680,1762216238856,-1097.989693,0.00035365,31]
[393000682,1762216238866,-151.0,0.00035365,31]
[393000684,1762216238877,-198.0,0.00035377,15]
[393000686,1762216238887,-262.0,0.00035377,15]
[393000688,1762216238897,-270.0455652,0.00035404,2]
[393000690,1762216238906,-3000.0,0.00035473,5]
[393000692,1762216238916,-400.0,0.00035473,5]
[393000693,1762216238925,-153.0,0.00035525,2]
[393000696,1762216238935,-153.0,0.00035525,2]
[393000697,1762216238944,-153.0,0.00035573,2]
[393000700,1762216238954,-153.0,0.00035573,2]
[393000701,1762216238963,-153.0,0.00035573,2]
[393000703,1762216238973,-153.0,0.00035573,2]
[393000706,1762216238983,-1194.43304526,0.00035578,2]
[393000707,1762216238992,-726.0648756,0.00035611,30]
[393000709,1762216239005,-1000.0,0.0003567,60]
[393000710,1762216239015,-1123.18114096,0.00035752,2]
[393000711,1762216239024,-153.0,0.0003578,30]
[393000712,1762216239034,-603.12771197,0.00035788,2]
[393000713,1762216239044,-1194.43304536,0.00035829,2]
[393000714,1762216239054,-151.0,0.00035886,2]
[393000715,1762216239064,-500.0,0.00035886,2]
[393000716,1762216239074,-269.16632181,0.00035886,2]
[393000848,1762216240546,-382.27970292,0.00035886,2]